bitfinex/quotes_ETHUSD_20240816
["timestamp","ask_amount","ask_price","bid_price","bid_amount"]
[1723838891183,5.4387,2626.3,2626.0,2.3153]
[1723838891184,3.80782,2626.2,2626.0,2.3153]
[1723838893041,3.80782,2626.2,2626.1,0.08056113]
[1723838895962,8.540322,2626.2,2626.1,0.08056113]
[1723838896162,3.8081,2626.0,2625.6,2.3153]
[1723838896474,3.80793,2626.1,2625.7,0.08104023]
[1723838896826,3.80782,2626.2,2625.7,4.89088325]
[1723838897115,3.80782,2626.2,2625.7,4.89082325]
[1723838897322,3.80782,2626.2,2625.7,3.88946023]
[1723838898206,3.80796,2626.1,2625.7,0.08104023]
[1723838898960,3.80807,2626.0,2625.7,0.08104023]
[1723838899561,3.80793,2626.1,2625.7,0.08104023]
[1723838901095,7.61569,2626.2,2625.7,0.08104023]
[1723838901260,3.80782,2626.2,2625.7,0.08104023]
[1723838901461,1.631,2626.3,2625.7,3.88944023]
[1723838901462,5.43869,2626.3,2625.7,3.88944023]
[1723838901663,5.43869,2626.3,2625.7,4.50992625]
[1723838901969,5.43869,2626.3,2625.8,3.8083]
[1723838902371,5.43869,2626.3,2625.9,0.08083613]
[1723838902612,3.80752,2626.4,2626.0,2.4995]
[1723838902964,3.80752,2626.4,2626.1,0.08060482]
[1723838905406,3.80778,2626.2,2626.1,0.08060482]
[1723838905593,7.61556,2626.2,2626.1,0.08060482]
[1723838905796,3.80795,2626.1,2625.7,2.4995]
[1723838907110,3.80766,2626.3,2625.8,3.80824]
[1723838907288,3.80766,2626.3,2625.8,4.439045]
[1723838907813,3.80766,2626.3,2625.9,0.08083613]
[1723838908313,3.80779,2626.2,2625.9,0.08083613]
[1723838909501,3.80792,2626.2,2626.0,0.0807131]
[1723838909698,3.80792,2626.2,2625.7,6.308]
[1723838909699,5.43892,2626.1,2625.7,2.4995]
[1723838909874,7.43487164,2626.1,2625.8,0.08094442]
[1723838910078,3.80792,2626.1,2625.7,2.4995]
[1723838910409,3.80792,2626.1,2625.8,0.08094442]
[1723838910709,3.80792,2626.1,2625.7,2.4995]
[1723838910930,3.80792,2626.1,2625.8,0.08094442]
[1723838911131,9.61179164,2626.2,2625.7,6.30797]
[1723838911298,5.80387164,2626.2,2625.7,6.30797]
[1723838911497,9.61176164,2626.2,2625.8,0.08094442]
[1723838911797,9.61176164,2626.2,2625.7,6.30797]
[1723838912134,3.80789,2626.2,2625.8,0.08094783]
[1723838912434,7.61577,2626.2,2625.7,6.30797]
[1723838912594,3.80778,2626.2,2625.9,0.08083216]
[1723838912795,3.80778,2626.2,2625.8,0.08094783]
[1723838913129,3.80778,2626.2,2625.7,10.1164]
[1723838913438,3.80778,2626.2,2625.8,0.08094783]
[1723838913792,9.61321439,2626.2,2625.7,6.30793]
[1723838914021,5.80535439,2626.2,2625.9,0.08083216]
[1723838914216,9.61321439,2626.2,2625.8,0.08094783]
[1723838914434,5.80535439,2626.2,2626.0,0.0807165]
[1723838914596,5.80535439,2626.2,2625.9,0.08083216]
[1723838914792,6.92975083,2626.2,2626.1,0.08060085]
[1723838915033,6.92975083,2626.2,2625.7,2.4995]
[1723838915034,3.80792,2626.1,2626.0,0.0807165]
[1723838915210,5.04478308,2626.1,2625.7,6.308]
[1723838921075,5.43907,2626.0,2625.5,3.80869]
[1723838921279,3.80894,2625.4,2625.0,3.80952]
[1723838921576,3.8091,2625.3,2624.9,9.8081]
[1723838921786,5.43994,2625.4,2624.9,7.32]
[1723838921787,5.44023,2625.2,2624.9,7.32]
[1723838922479,1.631,2625.2,2624.9,7.32]
[1723838922861,5.44024,2625.2,2624.9,7.32]
[1723838923178,3.80937,2625.1,2625.0,0.07915183]
[1723838923383,7.61874,2625.1,2625.0,0.07915183]
[1723838924784,3.80923,2625.2,2625.0,0.07915183]
[1723838925081,3.80912,2625.3,2625.0,0.07915183]
[1723838925277,3.80937,2625.1,2625.0,0.07915183]
[1723838925457,8.67391094,2625.3,2625.0,0.07915183]
[1723838925956,3.80924,2625.2,2625.0,0.07915183]
[1723838926157,3.80924,2625.2,2624.7,3.80994]
[1723838926479,3.80924,2625.2,2624.8,0.07942567]
[1723838926881,3.80924,2625.2,2624.7,3.80994]
[1723838927038,3.80924,2625.2,2624.9,0.07930992]
[1723838927239,3.80924,2625.2,2624.8,0.07942567]
[1723838927462,3.80924,2625.2,2625.0,0.07919417]
[1723838927664,3.62980536,2625.4,2625.0,2.3877]
[1723838927875,3.62980536,2625.4,2625.1,0.07907843]
[1723838928656,7.43882536,2625.4,2625.1,0.07907843]
[1723838929059,1.631,2625.4,2625.1,0.07907843]
[1723838929281,5.43995,2625.4,2625.1,0.07907843]
[1723838929456,3.80888,2625.5,2625.1,0.07907843]
[1723838929654,7.61781,2625.5,2625.0,2.3877]
[1723838929887,7.4577,2625.8,2625.4,3.80887]
[1723838930178,3.80793,2626.1,2625.6,3.80865]
[1723838930543,7.61596,2626.1,2625.7,0.07838641]
[1723838930783,3.80807,2626.0,2625.7,0.07838641]
[1723838930990,1.631,2626.2,2625.7,0.07838641]
[1723838931191,3.80791,2626.2,2625.7,2.38638641]
[1723838931353,5.80623536,2626.5,2625.9,3.80812]
[1723838931559,3.80752,2626.4,2626.0,0.07800265]
[1723838932498,3.80743,2626.5,2626.0,0.07800265]
[1723838932798,3.8075,2626.4,2626.0,0.07800265]
[1723838935587,7.61512,2626.4,2626.0,0.07800265]
[1723838935790,3.80773,2626.3,2626.0,0.07800265]
[1723838935962,3.80773,2626.3,2625.7,6.73590464]
[1723838936163,3.80773,2626.3,2625.8,0.07823398]
[1723838936354,3.80773,2626.3,2625.7,6.73590464]
[1723838936549,3.80773,2626.3,2625.8,0.07823398]
[1723838936775,3.80773,2626.3,2625.7,10.54433464]
[1723838936983,3.80773,2626.3,2625.8,4.94100744]
[1723838937455,3.80773,2626.3,2625.8,1.13266744]
[1723838938959,3.80773,2626.3,2625.8,4.94098744]
[1723838940417,3.80772,2626.3,2625.8,4.94098744]
[1723838940920,7.6155,2626.3,2625.8,4.94098744]
[1723838941209,3.8078,2626.2,2625.8,1.13266744]
[1723838941366,3.8081,2626.0,2625.8,0.07823398]
[1723838941569,3.8078,2626.2,2625.7,6.11643]
[1723838941768,3.8078,2626.2,2625.8,0.07823398]
[1723838942319,3.80799,2626.1,2625.7,2.308]
[1723838942521,3.8078,2626.2,2625.9,0.07811831]
[1723838942522,3.80807,2626.0,2625.9,0.07811831]
[1723838942734,7.61624,2626.0,2625.8,0.07823398]
[1723838942906,7.61624,2626.0,2625.9,0.07811831]
[1723838942907,3.80817,2626.0,2625.9,0.07811831]
[1723838943077,14.42451,2626.0,2625.9,0.07811831]
[1723838943405,14.42451,2626.0,2625.0,2.4707]
[1723838943406,3.8088,2625.5,2625.0,2.4707]
[1723838943906,3.8088,2625.5,2625.1,0.0762378]
[1723838945270,3.8086,2625.7,2625.1,3.8855878]
[1723838945609,3.80836,2625.8,2625.3,6.27978]
[1723838945921,3.80851,2625.7,2625.3,2.4707]
[1723838946082,9.269751,2625.9,2625.4,0.07589064]
[1723838946283,7.61665,2625.9,2625.4,0.07589064]
[1723838946505,3.80831,2625.9,2625.4,0.07589064]
[1723838946913,7.6166,2625.9,2625.4,0.07589064]
[1723838947517,3.8084,2625.8,2625.4,0.07589064]
[1723838947888,7.61715,2625.7,2625.4,0.07589064]
[1723838948218,7.61715,2625.7,2625.1,6.21749]
[1723838948434,4.750968,2625.7,2625.1,6.21749]
[1723838948634,3.80866,2625.6,2625.2,0.07612207]
[1723838949408,3.80836,2625.8,2625.2,3.88523207]
[1723838949409,3.80845,2625.8,2625.2,3.88523207]
[1723838949673,3.80851,2625.7,2625.2,4.89552028]
[1723838950335,3.80851,2625.7,2625.3,3.80908]
[1723838950634,3.80829,2625.9,2625.4,2.48409064]
[1723838950833,6.80818,2626.0,2625.4,6.29288064]
[1723838950834,3.80818,2626.0,2625.4,6.29288064]
[1723838951134,3.80818,2626.0,2625.5,0.62928806]
[1723838951333,3.80818,2626.0,2625.6,0.07565924]
[1723838951701,3.80818,2626.0,2625.6,3.88429924]
[1723838954001,3.80818,2626.0,2625.6,0.07565924]
[1723838954202,3.80817,2626.0,2625.6,0.07565924]
[1723838954416,3.80836,2625.8,2625.6,0.07565924]
[1723838954613,3.80836,2625.8,2625.4,6.21713]
[1723838954834,3.80836,2625.8,2625.7,0.07554355]
[1723838955019,3.80836,2625.8,2625.4,6.21713]
[1723838955215,3.80836,2625.8,2625.7,0.07554355]
[1723838955421,7.61636,2626.0,2625.4,6.21713]
[1723838955642,3.80816,2626.0,2625.7,0.07554355]
[1723838955934,3.80816,2626.0,2625.8,0.07542787]
[1723838956151,3.80816,2626.0,2625.5,1.42598725]
[1723838956351,3.80816,2626.0,2625.6,0.07565924]
[1723838956554,3.80815,2626.0,2625.6,0.07565924]
[1723838957126,3.80828,2625.9,2625.6,0.07565924]
[1723838957439,3.80828,2625.9,2625.4,6.21706]
[1723838957646,3.80828,2625.9,2625.7,0.07554355]
[1723838957848,3.80828,2625.9,2625.4,11.760549]
[1723838958025,3.80828,2625.9,2625.8,0.07542787]
[1723838958349,3.80828,2625.9,2625.8,0.07544011]
[1723838958550,3.80814,2626.0,2625.5,3.80877]
[1723838958752,3.80814,2626.0,2625.6,0.07567147]
[1723838960695,3.80823,2625.9,2625.6,0.07567147]
[1723838961480,3.80823,2625.9,2625.4,6.21713]
[1723838961683,7.61652,2625.9,2625.7,0.07555578]
[1723838961854,3.80823,2625.9,2625.4,6.21713]
[1723838962035,3.80823,2625.9,2625.8,0.07544011]
[1723838962671,3.80823,2625.9,2625.5,1.734621]
[1723838962979,3.80823,2625.9,2625.4,6.21713]
[1723838963180,3.80823,2625.9,2625.5,0.07578717]
[1723838963479,3.80823,2625.9,2625.5,3.88456717]
[1723838964690,3.80803,2626.1,2625.6,2.3011]
[1723838964892,3.80803,2626.1,2625.7,4.42705672]
[1723838965179,3.80803,2626.1,2625.7,4.5026125]
[1723838965361,3.80778,2626.2,2625.7,4.5025325]
[1723838966391,3.8075,2626.4,2625.9,6.1784]
[1723838966676,0.06629354,2626.5,2625.9,6.1784]
[1723838966677,3.80735,2626.5,2626.0,3.88325931]
[1723838967047,3.8075,2626.4,2626.0,0.07519931]
[1723838968039,3.80764,2626.3,2626.0,0.07519931]
[1723838968984,3.8075,2626.4,2626.0,0.07519931]
[1723838969149,3.80785,2626.2,2626.0,0.07519931]
[1723838969350,3.80758,2626.4,2626.0,0.07519931]
[1723838970089,3.80757,2626.4,2626.0,0.07519931]
[1723838970441,7.61515,2626.4,2626.0,0.07519931]
[1723838971386,3.80764,2626.3,2626.0,0.07519931]
[1723838974034,3.80792,2626.1,2626.0,0.07519931]
[1723838974239,0.96098667,2626.3,2625.7,9.6947]
[1723838974438,3.80788,2626.2,2626.0,0.07517872]
[1723838974736,7.61576,2626.2,2625.7,13.5032]
[1723838974892,7.61576,2626.2,2626.1,0.07506696]
[1723838975092,7.61576,2626.2,2625.7,13.5032]
[1723838975342,7.61576,2626.2,2626.1,0.07506696]
[1723838975504,7.61576,2626.2,2625.7,13.5032]
[1723838975710,7.61576,2626.2,2625.8,1.35032]
[1723838975920,3.80796,2626.1,2625.8,1.42573394]
[1723838976236,3.80796,2626.1,2625.8,0.07541394]
[1723838976410,3.80796,2626.1,2625.7,2.3747]
[1723838976602,3.80796,2626.1,2625.8,0.07541394]
[1723838976836,3.80788,2626.2,2625.7,2.3747]
[1723838976989,3.80788,2626.2,2625.8,0.618335]
[1723838977194,3.80764,2626.3,2625.9,0.07529827]
[1723838978162,3.80778,2626.2,2625.9,0.07529827]
[1723838978911,7.61567,2626.2,2625.9,0.07529827]
[1723838979112,3.80795,2626.1,2625.7,2.3747]
[1723838979306,3.80795,2626.1,2626.0,0.07517927]
[1723838979552,3.80795,2626.1,2625.7,2.3747]
[1723838979759,3.80795,2626.1,2626.0,0.07517927]
[1723838980108,3.80795,2626.1,2625.7,2.3747]
[1723838980303,3.80778,2626.2,2626.0,0.07517927]
[1723838980540,3.80778,2626.2,2625.7,6.1831]
[1723838980727,3.80778,2626.2,2626.1,0.07506362]
[1723838980927,3.80778,2626.2,2625.7,9.99153]
[1723838981121,3.80778,2626.2,2626.1,0.07506863]
[1723838981536,3.80778,2626.2,2625.7,6.1831]
[1723838981736,3.80778,2626.2,2626.1,0.07506863]
[1723838981924,3.80778,2626.2,2625.7,6.1831]
[1723838982125,3.80778,2626.2,2626.1,0.07506863]
[1723838982644,7.6157,2626.2,2626.1,0.07506863]
[1723838982828,7.6157,2626.2,2625.7,2.3747]
[1723838982829,8.57696278,2626.2,2625.7,2.3747]
[1723838983011,3.80778,2626.2,2626.1,0.07506863]
[1723838983212,3.80778,2626.2,2625.7,6.1832]
[1723838983444,3.80778,2626.2,2626.1,0.07506863]
[1723838983659,3.80794,2626.1,2625.7,6.1832]
[1723838984156,3.80794,2626.1,2625.8,0.07541561]
[1723838984532,3.80794,2626.1,2625.7,2.3747]
[1723838984729,3.80794,2626.1,2625.9,0.07530051]
[1723838984914,3.80794,2626.1,2625.8,0.07541617]
[1723838985114,3.80794,2626.1,2625.7,2.3747]
[1723838985314,3.80794,2626.1,2625.9,0.07530051]
[1723838985545,3.80794,2626.1,2625.7,2.3747]
[1723838985744,3.80794,2626.1,2626.0,0.07518485]
[1723838985930,3.80794,2626.1,2625.7,2.3747]
[1723838986498,3.80794,2626.1,2625.8,0.07541617]
[1723838986652,3.80794,2626.1,2625.7,2.3747]
[1723838986851,3.80794,2626.1,2625.9,0.07530051]
[1723838987081,3.80794,2626.1,2625.7,2.3747]
[1723838987286,3.80794,2626.1,2626.0,0.07518485]
[1723838987513,3.80794,2626.1,2625.7,6.1832]
[1723838987725,3.80794,2626.1,2626.0,0.07518485]
[1723838988005,3.80794,2626.1,2625.7,6.1832]
[1723838988176,3.80794,2626.1,2626.0,0.07518485]
[1723838988381,3.80794,2626.1,2625.7,2.3747]
[1723838989076,3.80808,2626.0,2625.8,0.07541617]
[1723838989303,3.80808,2626.0,2625.5,3.9044]
[1723838989465,3.80808,2626.0,2625.9,0.07530051]
[1723838989663,3.80808,2626.0,2625.5,7.71316]
[1723838989878,3.80808,2626.0,2625.9,0.07530051]
[1723838990083,3.80808,2626.0,2625.5,7.71316]
[1723838990366,3.80808,2626.0,2625.9,0.07530496]
[1723838990563,3.80808,2626.0,2625.5,7.71316]
[1723838990766,3.80794,2626.1,2625.9,0.07530496]
[1723838990963,7.61594,2626.1,2625.6,3.80865]
[1723838991207,3.80794,2626.1,2626.0,0.0751893]
[1723838991403,3.80794,2626.1,2625.6,3.80865]
[1723838991604,3.80794,2626.1,2626.0,0.07518986]
[1723838991811,5.18012767,2626.1,2625.6,3.80865]
[1723838991971,3.80794,2626.1,2626.0,0.07518986]
[1723838992171,3.80807,2626.0,2625.6,3.80865]
[1723838992469,3.80807,2626.0,2625.5,7.71318]
[1723838992669,3.80812,2626.0,2625.4,7.32]
[1723838992872,3.80855,2625.7,2625.4,7.32]
[1723838993072,3.80869,2625.6,2625.4,7.32]
[1723838993327,6.28625,2625.7,2625.4,7.32]
[1723838993328,3.80879,2625.5,2625.4,7.32]
[1723838993654,3.80879,2625.5,2624.9,2.2734]
[1723838993771,3.80909,2625.3,2624.9,2.2734]
[1723838994616,3.80909,2625.3,2624.9,3.776812]
[1723838994771,3.80909,2625.3,2624.9,7.586462]
[1723838995270,3.80909,2625.3,2624.9,3.776812]
[1723838995928,3.80909,2625.3,2624.9,2.2734]
[1723838996083,3.80946,2625.1,2624.8,7.32]
[1723838996867,6.28685,2625.3,2624.8,8.951]
[1723838997111,5.80748835,2625.5,2625.0,1.631]
[1723838997112,3.80895,2625.4,2625.0,1.631]
[1723838997821,3.80909,2625.3,2625.0,1.631]
[1723838997979,3.80909,2625.3,2625.1,0.0759085]
[1723838998789,3.80888,2625.5,2625.1,0.0759085]
[1723838999609,3.80888,2625.5,2625.1,3.8852685]
[1723838999810,3.80888,2625.5,2625.1,0.0759085]
[1723839000823,3.80888,2625.5,2625.1,3.8852685]
[1723839001188,7.61776,2625.5,2625.1,0.0759085]
[1723839001346,3.80895,2625.4,2625.1,0.0759085]
[1723839001730,3.80888,2625.5,2625.1,0.0759085]
[1723839001929,3.80861,2625.7,2625.1,4.66426035]
[1723839002097,3.80873,2625.6,2625.2,2.4153]
[1723839002300,3.80873,2625.6,2625.2,2.49055731]
[1723839002495,3.80881,2625.5,2625.2,2.49055731]
[1723839002842,3.80908,2625.3,2625.2,0.07525731]
[1723839003193,3.80908,2625.3,2624.9,2.4153]
[1723839003520,3.80908,2625.3,2625.0,0.07547931]
[1723839007540,7.6181,2625.4,2625.0,0.07547931]
[1723839007709,3.8091,2625.3,2625.0,0.07547931]
[1723839008147,3.8091,2625.3,2624.8,6.26023]
[1723839008363,3.8094,2625.1,2624.6,3.81002]
[1723839008671,5.44024,2625.2,2624.7,3.80986]
[1723839008814,5.44024,2625.2,2624.6,3.81009]
[1723839009021,3.80938,2625.1,2624.6,6.385142]
[1723839009246,1.631,2625.0,2624.5,9.7705]
[1723839009447,3.81037,2624.5,2624.2,7.32]
[1723839009743,3.81037,2624.5,2624.0,2.4632]
[1723839009744,3.81028,2624.5,2624.0,2.4632]
[1723839010153,1.99484821,2625.0,2624.3,2.3356]
[1723839010154,3.80976,2624.9,2624.3,2.3356]
[1723839010311,3.06630256,2625.3,2624.7,2.3356]
[1723839010510,3.06630256,2625.3,2624.8,0.614557]
[1723839010511,3.80938,2625.1,2624.8,0.614557]
[1723839010709,5.44054,2625.0,2624.4,13.46585]
[1723839010909,5.44054,2625.0,2624.4,14.812435]
[1723839011527,1.631,2625.0,2624.5,3.81011]
[1723839011744,3.80939,2625.1,2624.6,3.81008]
[1723839012053,3.80939,2625.1,2624.6,7.62003]
[1723839012234,5.44031,2625.2,2624.6,3.81001]
[1723839012439,5.44031,2625.2,2624.6,5.68572635]
[1723839013035,5.44031,2625.2,2624.7,0.07329516]
[1723839014144,3.80939,2625.1,2624.7,0.07329516]
[1723839015840,7.61889,2625.1,2624.7,0.07329516]
[1723839016018,3.80939,2625.1,2624.7,0.07329516]
[1723839016323,1.631,2625.0,2624.7,0.07329516]
[1723839018622,3.80939,2625.1,2624.7,0.07329516]
[1723839019769,1.631,2625.2,2624.7,0.07329516]
[1723839019987,5.44031,2625.2,2624.8,2.3707]
[1723839020341,5.44031,2625.2,2624.9,0.07306364]
[1723839020590,11.26635,2625.6,2625.1,3.80937]
[1723839020767,7.73436,2625.8,2624.9,3.88262364]
[1723839020944,3.80861,2625.7,2625.2,0.07271642]
[1723839021273,3.80861,2625.7,2625.3,0.0726007]
[1723839021478,7.73436,2625.8,2625.1,3.80937]
[1723839021479,5.43965,2625.6,2625.1,3.80937]
[1723839021977,5.43956,2625.7,2625.3,2.4478]
[1723839022152,5.43956,2625.7,2625.2,0.07271642]
[1723839022349,3.80868,2625.6,2625.1,6.2571]
[1723839022664,1.631,2625.5,2625.3,0.0726007]
[1723839022870,1.631,2625.5,2625.2,0.07271642]
[1723839023167,1.631,2625.5,2625.1,2.4478]
[1723839023359,1.631,2625.5,2625.3,0.0726007]
[1723839023699,1.631,2625.5,2625.1,2.4478]
[1723839023873,1.631,2625.5,2625.4,0.07248499]
[1723839024078,3.80868,2625.6,2625.4,0.07248499]
[1723839024388,3.80868,2625.6,2625.4,0.07247606]
[1723839024681,7.4577,2625.9,2625.5,2.4478]
[1723839024849,3.80758,2626.4,2625.7,3.80846]
[1723839025052,0.0663493,2626.5,2625.5,2.4478]
[1723839025278,3.80807,2626.0,2625.8,0.0720133]
[1723839025484,4.569668,2626.0,2625.9,0.07189763]
[1723839025754,3.80843,2625.8,2625.2,2.3468]
[1723839025990,3.80843,2625.8,2625.3,0.23468]
[1723839026150,3.80843,2625.8,2625.3,0.30727177]
[1723839027292,7.61689,2625.8,2625.3,0.30727177]
[1723839027447,7.61693,2625.8,2625.3,0.30727177]
[1723839027651,7.61693,2625.8,2625.3,0.07259177]
[1723839027879,3.80843,2625.8,2625.3,0.07259177]
[1723839028195,3.80843,2625.8,2625.4,0.07247606]
[1723839028376,3.80843,2625.8,2625.2,2.3468]
[1723839028377,3.80854,2625.7,2625.2,2.3468]
[1723839028565,3.80841,2625.8,2625.5,0.07236035]
[1723839028889,7.61688,2625.8,2625.2,2.3468]
[1723839029257,7.61688,2625.8,2625.3,0.07259177]
[1723839029685,7.61688,2625.8,2625.2,2.3468]
[1723839029994,3.80851,2625.7,2625.3,0.07256112]
[1723839030450,3.80851,2625.7,2625.2,2.3468]
[1723839031005,3.80816,2626.0,2625.3,0.07256502]
[1723839031894,3.80816,2626.0,2625.3,3.9207491]
[1723839032193,3.80815,2626.0,2625.3,5.30934801]
[1723839032394,3.80815,2626.0,2625.4,2.3919]
[1723839032689,6.1858,2626.2,2625.5,0.11154913]
[1723839032690,3.8078,2626.2,2625.5,0.11154913]
[1723839032854,3.0,2626.1,2625.5,4.69037393]
[1723839033050,3.0,2626.1,2625.6,2.3919]
[1723839033253,12.00483677,2626.4,2625.7,0.11131476]
[1723839033506,12.00483677,2626.4,2625.7,3.91972476]
[1723839033507,5.24718689,2626.4,2625.7,3.91972476]
[1723839033659,3.80758,2626.4,2625.8,2.3919]
[1723839033965,3.80758,2626.4,2625.9,0.11104924]
[1723839034165,6.20397,2626.6,2625.9,0.11104924]
[1723839034166,3.80789,2626.2,2625.9,0.11104924]
[1723839034753,3.80789,2626.2,2625.6,2.3919]
[1723839035000,3.80789,2626.2,2626.0,0.10720329]
[1723839035191,3.80799,2626.1,2625.6,2.3919]
[1723839035395,3.80815,2626.0,2625.4,2.3919]
[1723839035554,3.80822,2625.9,2625.4,2.3919]
[1723839035756,3.80815,2626.0,2625.4,2.3919]
[1723839036206,3.80825,2625.9,2625.4,2.3919]
[1723839036864,4.8855816,2626.0,2625.4,2.3919]
[1723839037065,8.6937916,2626.0,2625.4,2.3919]
[1723839037465,4.8855816,2626.0,2625.4,2.3919]
[1723839038874,3.80794,2626.1,2625.4,2.3919]
[1723839039070,3.80788,2626.2,2625.5,3.8087]
[1723839039406,3.80788,2626.2,2625.5,4.42876]
[1723839039768,3.80788,2626.2,2625.6,2.2653]
[1723839040104,3.8083,2625.9,2625.2,6.07451]
[1723839040293,3.8083,2625.9,2625.2,2.2653]
[1723839040601,3.8083,2625.9,2625.2,6.07448]
[1723839040801,3.8083,2625.9,2625.3,3.80906]
[1723839042001,3.80807,2626.0,2625.4,2.2653]
[1723839042363,3.80802,2626.1,2625.4,6.07417]
[1723839042574,3.8077,2626.3,2625.7,2.2653]
[1723839043010,7.61542,2626.3,2625.8,0.10385784]
[1723839043311,7.61542,2626.3,2625.7,2.2653]
[1723839043512,3.8077,2626.3,2625.8,0.10385784]
[1723839044106,3.8077,2626.3,2625.9,0.10374068]
[1723839044413,3.8077,2626.3,2625.7,2.872687]
[1723839044587,7.61544,2626.3,2626.0,0.10362353]
[1723839044775,7.61544,2626.3,2625.7,2.2653]
[1723839044976,3.8077,2626.3,2626.1,0.10350638]
[1723839045184,3.8077,2626.3,2625.7,2.2653]
[1723839045407,3.8077,2626.3,2626.2,0.10338925]
[1723839045618,8.376936,2626.3,2625.7,2.2653]
[1723839045911,7.61542,2626.3,2625.7,2.2653]
[1723839046122,3.80814,2626.0,2625.8,0.10385784]
[1723839046289,3.80821,2625.9,2625.8,0.10385784]
[1723839046489,3.80821,2625.9,2625.5,7.32]
[1723839046689,3.80821,2625.9,2625.6,0.10409219]
[1723839047879,7.617,2625.7,2625.6,0.10409219]
[1723839048102,7.617,2625.7,2624.9,9.7104]
[1723839048103,3.80917,2625.3,2624.9,9.7104]
[1723839048421,3.80917,2625.3,2624.6,3.80996]
[1723839048422,3.80938,2625.1,2625.0,0.10130908]
[1723839048722,3.80978,2624.9,2624.6,2.3904]
[1723839048918,4.4625887,2625.2,2625.0,0.10130908]
[1723839051240,3.81083,2624.1,2624.0,0.1024819]
[1723839051741,3.81072,2624.2,2624.0,0.1024819]
[1723839051905,3.81072,2624.2,2623.6,2.3904]
[1723839052100,3.81072,2624.2,2624.1,0.10236457]
[1723839052326,3.81072,2624.2,2623.6,2.3904]
[1723839052506,3.81048,2624.4,2624.1,0.10236457]
[1723839052735,3.81018,2624.6,2623.8,3.81125]
[1723839052900,3.81018,2624.6,2623.9,0.381125]
[1723839053101,3.81018,2624.6,2624.0,0.1024819]
[1723839056267,3.81018,2624.6,2624.0,0.1024819]
[1723839056407,3.81018,2624.6,2624.0,2.4928819]
[1723839057748,7.62037,2624.6,2624.0,2.4928819]
[1723839057954,3.81025,2624.5,2624.0,2.4928819]
[1723839058450,7.62042,2624.6,2624.0,2.4928819]
[1723839058645,7.62042,2624.6,2624.0,3.89339859]
[1723839059650,3.81018,2624.6,2624.0,3.89339859]
[1723839060244,7.62037,2624.6,2624.0,3.89339859]
[1723839060557,2.40957879,2624.8,2624.0,3.89339859]
[1723839060558,7.62094,2624.4,2624.0,2.4928819]
[1723839060858,3.81041,2624.4,2624.0,0.1024819]
[1723839061148,3.81062,2624.3,2623.8,7.32]
[1723839061355,3.81062,2624.3,2624.1,0.10236457]
[1723839061532,4.572723,2624.3,2623.8,7.32]
[1723839061714,3.81062,2624.3,2624.2,0.10224726]
[1723839061925,3.81062,2624.3,2623.8,7.32]
[1723839062152,3.81062,2624.3,2624.2,0.10224726]
[1723839062452,3.81062,2624.3,2623.7,2.3829]
[1723839062619,3.81041,2624.4,2624.2,0.10224726]
[1723839062814,3.81041,2624.4,2623.7,3.002342]
[1723839063162,3.81019,2624.6,2623.8,2.3829]
[1723839063365,3.87627879,2624.8,2624.0,6.19382]
[1723839063545,3.0,2624.7,2624.0,6.19382]
[1723839063858,6.81004,2624.7,2624.1,0.10244357]
[1723839064153,3.80918,2625.3,2624.4,6.19321]
[1723839064318,2.4587,2625.4,2624.4,2.3829]
[1723839064319,3.80961,2625.0,2624.4,2.3829]
[1723839064519,3.80961,2625.0,2624.5,0.10197438]
[1723839064948,7.61895,2625.1,2624.5,0.10197438]
[1723839065150,3.80946,2625.1,2624.5,0.10197438]
[1723839065455,3.917,2625.2,2624.5,0.10197438]
[1723839065663,7.62014,2624.7,2624.5,0.10197438]
[1723839066284,7.62014,2624.7,2624.1,2.3829]
[1723839066285,3.81004,2624.7,2624.1,2.3829]
[1723839066749,3.81004,2624.7,2624.2,0.10238666]
[1723839067135,3.81012,2624.6,2624.2,0.10238666]
[1723839068253,3.87593455,2625.0,2624.2,0.10238666]
[1723839068441,3.87593455,2625.0,2624.3,2.3829]
[1723839068636,3.0,2625.1,2624.3,6.19334]
[1723839069062,3.8096,2625.0,2624.4,0.10215206]
[1723839069268,7.62048,2624.5,2624.4,0.10215206]
[1723839069556,3.81064,2624.3,2623.7,2.4109]
[1723839069958,3.81063,2624.3,2623.8,0.10285906]
[1723839070268,3.81074,2624.2,2623.8,0.10285906]
[1723839070570,3.917,2624.6,2623.9,0.10274172]
[1723839070571,3.81019,2624.6,2623.9,0.10274172]
[1723839070783,3.81019,2624.6,2623.9,0.73522989]
[1723839070784,3.81018,2624.6,2623.9,0.73522989]
[1723839071069,6.8099,2624.8,2624.0,6.22177]
[1723839071224,6.8099,2624.8,2624.1,0.63245117]
[1723839071225,3.8099,2624.8,2624.1,0.63245117]
[1723839071425,3.8099,2624.8,2624.1,0.73496495]
[1723839071622,3.8099,2624.8,2624.1,4.54568495]
[1723839071945,3.8096,2625.0,2624.3,3.81053]
[1723839072247,3.8097,2624.9,2624.2,4.8873755]
[1723839072423,3.80982,2624.8,2624.4,0.10216187]
[1723839072641,3.80982,2624.8,2624.3,0.66451322]
[1723839072892,3.80982,2624.8,2624.5,0.10204459]
[1723839073041,3.80982,2624.8,2624.4,0.10216187]
[1723839073244,3.80982,2624.8,2624.6,0.10192731]
[1723839073487,3.80982,2624.8,2624.5,0.10204459]
[1723839073692,3.8096,2625.0,2624.7,0.10181004]
[1723839073857,3.8096,2625.0,2624.6,0.10192731]
[1723839074181,3.80974,2624.9,2624.7,0.10181004]
[1723839074341,7.61921,2625.0,2624.7,0.10181004]
[1723839074543,3.8096,2625.0,2624.2,4.8873355]
[1723839074843,3.8096,2625.0,2624.8,0.10169278]
[1723839075043,3.8096,2625.0,2624.3,0.48873355]
[1723839075558,3.8096,2625.0,2624.4,0.10216187]
[1723839075870,3.80967,2624.9,2624.4,0.10216187]
[1723839076065,7.61942,2624.9,2624.4,0.10216187]